[Event "28th Bosnjaci Open 2024"]
[Site "Bosnjaci"]
[Date "2024.01.08"]
[Round "8.2"]
[White "Zaja, Ivan"]
[Black "Culum, Sanjin"]
[Result "1/2-1/2"]
[ECO "D38"]
[WhiteElo "2419"]
[BlackElo "2349"]
[Annotator "RC"]
[PlyCount "52"]
[EventDate "2024.01.02"]
[EventType "swiss"]
[EventCountry "CRO"]
[SourceTitle "playchess.com"]
[Source "ChessBase"]
[SourceQuality "1"]
[TimeControl "5400+30"]

1. d4 {[%emt 0:00:09]} Nf6 {[%emt 0:00:24]} 2. c4 {[%emt 0:00:05]} e6 {[%emt 0:00:26]} 3. Nf3 {[%emt 0:00:17]} d5 {[%emt 0:00:42]} 4. Nc3 {[%emt 0:00:34]} Bb4 {[%emt 0:00:43]} 5. Qa4+ {[%emt 0:00:19]} Nc6 {[%emt 0:00:05]} 6. e3 {[%emt 0:00:03]} O-O {[%emt 0:01:04]} 7. Qc2 {[%emt 0:00:11]} a5 {[%emt 0:06:48]} 8. Bd2 {[%emt 0:06:43]} Ne7 {[%emt 0:01:36]} 9. Bd3 {[%emt 0:07:24]} b6 {[%emt 0:05:53]} 10. O-O {[%emt 0:05:53]} Bb7 {[%emt 0:10:32]} 11. a3 {[%emt 0:06:16]} Bxc3 {[%emt 0:02:51]} 12. Bxc3 {[%emt 0:00:32]} dxc4 {[%emt 0:13:05]} 13. Bxc4 {[%emt 0:01:15]} Nf5 {[%emt 0:02:40]} 14. Ne5 {[%emt 0:13:21]} c5 {[%emt 0:25:15]} 15. dxc5 {[%emt 0:01:54]} bxc5 {[%emt 0:00:05]} 16. Rad1 {[%emt 0:05:05]} Qc7 {[%emt 0:00:20]} 17. b3 {[%emt 0:00:36]} Nh4 {[%emt 0:04:00]} 18. f3 {[%emt 0:01:06]} Nd5 {[%emt 0:00:43]} 19. Rfe1 {[%emt 0:21:09]} Nxc3 {[%emt 0:02:26]} 20. Qxc3 {[%emt 0:00:47]} Rfd8 {[%emt 0:01:53]} 21. e4 {[%emt 0:04:57]} Ng6 {[%emt 0:00:41]} 22. Nxg6 {[%emt 0:02:54]} hxg6 {[%emt 0:00:05]} 23. a4 {[%emt 0:02:03]} Qb6 {[%emt 0:01:08]} 24. Kf2 {[%emt 0:01:20]} Rd4 {[%emt 0:01:02]} 25. Rxd4 {[%emt 0:01:01]} cxd4 {[%emt 0:05:44]} 26. Qd2 {[%emt 0:00:13]} Ba6 {[%emt 0:01:19]} 1/2-1/2

[Event "28th Bosnjaci Open 2024"]
[Site "Bosnjaci"]
[Date "2024.01.08"]
[Round "8.3"]
[White "Muratovic, Efim"]
[Black "Fercec, Nenad"]
[Result "0-1"]
[ECO "D02"]
[WhiteElo "2345"]
[BlackElo "2410"]
[Annotator "RC"]
[PlyCount "140"]
[EventDate "2024.01.02"]
[EventType "swiss"]
[EventCountry "CRO"]
[SourceTitle "playchess.com"]
[Source "ChessBase"]
[SourceQuality "1"]
[TimeControl "5400+30"]

1. Nf3 {[%emt 0:00:27]} d5 {[%emt 0:00:14]} 2. d4 {[%emt 0:00:22]} Nc6 {[%emt 0:00:08]} 3. Bf4 {[%emt 0:01:59]} Bg4 {[%emt 0:00:16]} 4. Nbd2 {[%emt 0:01:08]} e6 {[%emt 0:00:49]} 5. e3 {[%emt 0:04:11]} Bd6 {[%emt 0:00:10]} 6. Bg3 {[%emt 0:02:39]} Nge7 {[%emt 0:16:42]} 7. c3 {[%emt 0:03:23]} Nf5 {[%emt 0:02:01]} 8. Bd3 {[%emt 0:04:40]} Nxg3 {[%emt 0:05:29]} 9. hxg3 {[%emt 0:00:08]} e5 {[%emt 0:01:32]} 10. Qb3 {[%emt 0:17:43]} Bxf3 {[%emt 0:13:06]} 11. gxf3 {[%emt 0:03:30]} Ne7 {[%emt 0:00:21]} 12. O-O-O {[%emt 0:02:15]} c6 {[%emt 0:03:24]} 13. dxe5 {[%emt 0:05:22]} Bxe5 {[%emt 0:00:12]} 14. f4 {[%emt 0:03:52]} Bd6 {[%emt 0:05:21]} 15. Qxb7 {[%emt 0:04:14]} a5 {[%emt 0:02:36]} 16. e4 {[%emt 0:08:29]} Rb8 {[%emt 0:11:59]} 17. Qa7 {[%emt 0:00:18]} h6 {[%emt 0:01:08]} 18. f5 {[%emt 0:06:39]} f6 {[%emt 0:08:57]} 19. Qe3 {[%emt 0:02:02]} a4 {[%emt 0:06:35]} 20. f4 {[%emt 0:16:00]} Qa5 {[%emt 0:00:38]} 21. Kc2 {[%emt 0:01:03]} Bc5 {[%emt 0:02:00]} 22. Qe2 {[%emt 0:00:13]} O-O {[%emt 0:04:47]} 23. Rb1 {[%emt 0:00:24]} dxe4 {[%emt 0:00:31]} 24. Qxe4 {[%emt 0:01:17]} Nd5 {[%emt 0:00:24]} 25. Bc4 {[%emt 0:01:27]} Kh8 {[%emt 0:01:59]} 26. Bxd5 {[%emt 0:00:49]} cxd5 {[%emt 0:00:05]} 27. Qxd5 {[%emt 0:00:28]} Rbd8 {[%emt 0:00:36]} 28. Qc6 {[%emt 0:01:19]} Be3 {[%emt 0:00:25]} 29. Ne4 {[%emt 0:00:44]} Qxf5 {[%emt 0:00:34]} 30. Rbe1 {[%emt 0:01:25]} Bf2 {[%emt 0:08:55]} 31. g4 {[%emt 0:00:39]} Qxf4 {[%emt 0:00:57]} 32. Rhf1 {[%emt 0:00:16]} Qf3 {[%emt 0:00:36]} 33. Rxf2 {[%emt 0:00:26]} Qd3+ {[%emt 0:00:05]} 34. Kc1 {[%emt 0:00:16]} a3 {[%emt 0:00:25]} 35. Rd2 {[%emt 0:02:07]} axb2+ {[%emt 0:00:08]} 36. Kxb2 {[%emt 0:00:07]} Rb8+ {[%emt 0:00:06]} 37. Ka1 {[%emt 0:00:13]} Qf3 {[%emt 0:00:03]} 38. Qd6 {[%emt 0:01:55]} Rfe8 {[%emt 0:00:26]} 39. Qd3 {[%emt 0:02:07]} Qxg4 {[%emt 0:00:11]} 40. Rde2 {[%emt 0:00:22]} Red8 {[%emt 0:00:12]} 41. Qc2 {[%emt 0:00:11]} f5 {[%emt 0:00:44]} 42. Nd2 {[%emt 0:00:36]} f4 {[%emt 0:00:17]} 43. Nb3 {[%emt 0:00:56]} f3 {[%emt 0:00:06]} 44. Qe4 {[%emt 0:00:55]} Qg3 {[%emt 0:00:39]} 45. Re3 {[%emt 0:00:49]} Re8 {[%emt 0:00:31]} 46. Qxe8+ {[%emt 0:00:29]} Rxe8 {[%emt 0:00:07]} 47. Rxe8+ {[%emt 0:00:02]} Kh7 {[%emt 0:00:04]} 48. Rc1 {[%emt 0:00:21]} Qf4 {[%emt 0:00:27]} 49. Ree1 {[%emt 0:00:38]} g5 {[%emt 0:00:37]} 50. Nd4 {[%emt 0:00:21]} f2 {[%emt 0:00:22]} 51. Re7+ {[%emt 0:00:36]} Kg6 {[%emt 0:00:16]} 52. Rf1 {[%emt 0:01:44]} g4 {[%emt 0:00:19]} 53. Re6+ {[%emt 0:00:25]} Kf7 {[%emt 0:00:21]} 54. Ne2 {[%emt 0:00:39]} Qf3 {[%emt 0:00:27]} 55. Re5 {[%emt 0:00:39]} g3 {[%emt 0:00:11]} 56. Nxg3 {[%emt 0:00:38]} Qxc3+ {[%emt 0:00:06]} 57. Kb1 {[%emt 0:00:03]} Qxe5 {[%emt 0:00:07]} 58. Rxf2+ {[%emt 0:00:01]} Kg6 {[%emt 0:00:11]} 59. Rf3 {[%emt 0:00:52]} h5 {[%emt 0:00:36]} 60. Kc1 {[%emt 0:01:24]} h4 {[%emt 0:02:08]} 61. Nf1 {[%emt 0:00:47]} Qe2 {[%emt 0:01:16]} 62. Nd2 {[%emt 0:00:17]} Kg5 {[%emt 0:00:18]} 63. a4 {[%emt 0:00:50]} Kg4 {[%emt 0:00:07]} 64. Rf8 {[%emt 0:00:22]} h3 {[%emt 0:00:12]} 65. Rg8+ {[%emt 0:00:06]} Kf5 {[%emt 0:00:20]} 66. Rf8+ {[%emt 0:00:28]} Kg6 {[%emt 0:00:10]} 67. Nf3 {[%emt 0:01:15]} Kg7 {[%emt 0:00:06]} 68. Rf5 {[%emt 0:00:17]} h2 {[%emt 0:00:43]} 69. Nxh2 {[%emt 0:00:07]} Qe1+ {[%emt 0:00:05]} 70. Kb2 {[%emt 0:00:20]} Qd2+ {[%emt 0:00:06]} 0-1

[Event "28th Bosnjaci Open 2024"]
[Site "Bosnjaci"]
[Date "2024.01.08"]
[Round "8.4"]
[White "Zufic, Miroslav"]
[Black "Milovic, Jovan"]
[Result "0-1"]
[ECO "B06"]
[WhiteElo "2354"]
[BlackElo "2223"]
[Annotator "RC"]
[PlyCount "60"]
[EventDate "2024.01.02"]
[EventType "swiss"]
[EventCountry "CRO"]
[SourceTitle "playchess.com"]
[Source "ChessBase"]
[SourceQuality "1"]
[TimeControl "5400+30"]

1. e4 {[%emt 0:00:03]} g6 {[%emt 0:04:46]} 2. d4 {[%emt 0:00:10]} Bg7 {[%emt 0:00:08]} 3. Nf3 {[%emt 0:01:38]} d6 {[%emt 0:00:46]} 4. Bc4 {[%emt 0:04:51]} Nf6 {[%emt 0:00:18]} 5. Qe2 {[%emt 0:00:52]} O-O {[%emt 0:08:13]} 6. Bb3 {[%emt 0:04:35]} e5 {[%emt 0:02:32]} 7. dxe5 {[%emt 0:06:48]} dxe5 {[%emt 0:00:06]} 8. O-O {[%emt 0:02:26]} Nc6 {[%emt 0:01:54]} 9. c3 {[%emt 0:01:45]} Nh5 {[%emt 0:02:20]} 10. Rd1 {[%emt 0:07:03]} Qe8 {[%emt 0:04:11]} 11. g3 {[%emt 0:14:13]} Kh8 {[%emt 0:03:42]} 12. Kg2 {[%emt 0:08:07]} f5 {[%emt 0:04:48]} 13. Na3 {[%emt 0:07:13]} f4 {[%emt 0:06:55]} 14. h3 {[%emt 0:00:43]} fxg3 {[%emt 0:06:52]} 15. fxg3 {[%emt 0:02:17]} g5 {[%emt 0:07:01]} 16. Nxg5 {[%emt 0:08:01]} Qg6 {[%emt 0:02:24]} 17. Rf1 {[%emt 0:02:36]} Nf4+ {[%emt 0:00:51]} 18. gxf4 {[%emt 0:06:30]} exf4 {[%emt 0:00:08]} 19. Bxf4 {[%emt 0:00:40]} Rxf4 {[%emt 0:00:40]} 20. Rxf4 {[%emt 0:01:26]} Qxg5+ {[%emt 0:00:13]} 21. Rg4 {[%emt 0:00:57]} Bxg4 {[%emt 0:05:07]} 22. Qxg4 {[%emt 0:00:36]} Qd2+ {[%emt 0:00:52]} 23. Kh1 {[%emt 0:00:09]} Qxb2 {[%emt 0:00:21]} 24. Rg1 {[%emt 0:00:25]} Qxc3 {[%emt 0:00:08]} 25. Nc2 {[%emt 0:03:29]} Qf6 {[%emt 0:01:37]} 26. Ne3 {[%emt 0:04:24]} Ne5 {[%emt 0:03:10]} 27. Qh5 {[%emt 0:01:49]} Qf4 {[%emt 0:01:53]} 28. Qf5 {[%emt 0:05:01]} Qh6 {[%emt 0:02:23]} 29. Kh2 {[%emt 0:01:16]} Qxe3 {[%emt 0:00:29]} 30. Rxg7 {[%emt 0:00:24]} Nf3+ {[%emt 0:00:11]} 0-1

[Event "28th Bosnjaci Open 2024"]
[Site "Bosnjaci"]
[Date "2024.01.08"]
[Round "8.5"]
[White "Ljikar, Zoran"]
[Black "Hadzovic, Amir"]
[Result "0-1"]
[ECO "D00"]
[WhiteElo "2200"]
[BlackElo "2307"]
[Annotator "RC"]
[PlyCount "104"]
[EventDate "2024.01.02"]
[EventType "swiss"]
[EventCountry "CRO"]
[SourceTitle "playchess.com"]
[Source "ChessBase"]
[SourceQuality "1"]
[TimeControl "5400+30"]

1. d4 {[%emt 0:13:15]} Nf6 {[%emt 0:01:18]} 2. Nc3 {[%emt 0:00:12]} d5 {[%emt 0:01:54]} 3. Bf4 {[%emt 0:00:52]} e6 {[%emt 0:02:46]} 4. Nb5 {[%emt 0:02:02]} Na6 {[%emt 0:00:30]} 5. e3 {[%emt 0:00:50]} c6 {[%emt 0:01:51]} 6. Nc3 {[%emt 0:00:06]} Bb4 {[%emt 0:11:04]} 7. Qd3 {[%emt 0:10:01]} O-O {[%emt 0:02:12]} 8. a3 {[%emt 0:00:12]} Qa5 {[%emt 0:02:53]} 9. Rb1 {[%emt 0:02:14]} Bxc3+ {[%emt 0:04:59]} 10. Qxc3 {[%emt 0:00:14]} Qxc3+ {[%emt 0:00:02]} 11. bxc3 {[%emt 0:00:01]} b6 {[%emt 0:03:34]} 12. h4 {[%emt 0:11:22]} Bb7 {[%emt 0:05:53]} 13. a4 {[%emt 0:12:57]} Nd7 {[%emt 0:07:37]} 14. Nf3 {[%emt 0:01:13]} Rac8 {[%emt 0:04:20]} 15. h5 {[%emt 0:00:57]} Nab8 {[%emt 0:05:53]} 16. h6 {[%emt 0:00:54]} g6 {[%emt 0:00:17]} 17. a5 {[%emt 0:05:33]} Ba6 {[%emt 0:10:38]} 18. Bxa6 {[%emt 0:04:06]} Nxa6 {[%emt 0:00:07]} 19. Ne5 {[%emt 0:00:04]} Nxe5 {[%emt 0:02:23]} 20. Bxe5 {[%emt 0:00:02]} f6 {[%emt 0:00:33]} 21. Bd6 {[%emt 0:00:32]} Rf7 {[%emt 0:06:14]} 22. axb6 {[%emt 0:01:18]} Rb7 {[%emt 0:04:06]} 23. Ra1 {[%emt 0:03:46]} Rxb6 {[%emt 0:00:07]} 24. Kd2 {[%emt 0:00:24]} Rd8 {[%emt 0:08:08]} 25. Bg3 {[%emt 0:02:16]} e5 {[%emt 0:11:19]} 26. Ra5 {[%emt 0:05:30]} c5 {[%emt 0:01:22]} 27. Rha1 {[%emt 0:00:08]} Nc7 {[%emt 0:00:16]} 28. Rxa7 {[%emt 0:00:18]} Ne6 {[%emt 0:00:08]} 29. dxe5 {[%emt 0:01:14]} f5 {[%emt 0:01:09]} 30. Re7 {[%emt 0:00:16]} d4 {[%emt 0:00:50]} 31. cxd4 {[%emt 0:03:53]} cxd4 {[%emt 0:00:04]} 32. Raa7 {[%emt 0:00:35]} Rc6 {[%emt 0:01:08]} 33. Rad7 {[%emt 0:05:40]} dxe3+ {[%emt 0:00:51]} 34. fxe3 {[%emt 0:00:01]} Rdc8 {[%emt 0:00:16]} 35. c4 {[%emt 0:00:40]} g5 {[%emt 0:00:36]} 36. Rd6 {[%emt 0:01:13]} Nc5 {[%emt 0:00:36]} 37. Rxc6 {[%emt 0:05:17]} Rxc6 {[%emt 0:00:03]} 38. Rg7+ {[%emt 0:00:14]} Kf8 {[%emt 0:00:38]} 39. Be1 {[%emt 0:00:33]} Rxh6 {[%emt 0:00:22]} 40. Rc7 {[%emt 0:00:22]} Ne4+ {[%emt 0:00:33]} 41. Kd3 {[%emt 0:00:14]} Rb6 {[%emt 0:00:55]} 42. Rxh7 {[%emt 0:00:36]} Rb3+ {[%emt 0:00:23]} 43. Kc2 {[%emt 0:01:17]} Rb6 {[%emt 0:00:37]} 44. Ba5 {[%emt 0:00:26]} Re6 {[%emt 0:00:07]} 45. Bc7 {[%emt 0:01:09]} Rc6 {[%emt 0:00:30]} 46. Kd3 {[%emt 0:02:03]} Kg8 {[%emt 0:00:28]} 47. Re7 {[%emt 0:00:49]} Kf8 {[%emt 0:00:15]} 48. Bd6 {[%emt 0:01:57]} Nxd6 {[%emt 0:00:16]} 49. Re6 {[%emt 0:00:08]} Nxc4 {[%emt 0:00:53]} 50. Rxc6 {[%emt 0:01:05]} Nxe5+ {[%emt 0:00:05]} 51. Kd4 {[%emt 0:00:05]} Nxc6+ {[%emt 0:00:03]} 52. Kd5 {[%emt 0:00:19]} Kf7 {[%emt 0:01:39]} 0-1

[Event "28th Bosnjaci Open 2024"]
[Site "Bosnjaci"]
[Date "2024.01.08"]
[Round "8.6"]
[White "Sajin, Mirko"]
[Black "Tukovic, Dario"]
[Result "1-0"]
[ECO "C45"]
[WhiteElo "2299"]
[BlackElo "2132"]
[Annotator "RC"]
[PlyCount "67"]
[EventDate "2024.01.02"]
[EventType "swiss"]
[EventCountry "CRO"]
[SourceTitle "playchess.com"]
[Source "ChessBase"]
[SourceQuality "1"]
[TimeControl "5400+30"]

1. e4 {[%emt 0:00:11]} e5 {[%emt 0:00:39]} 2. Nf3 {[%emt 0:00:52]} Nc6 {[%emt 0:00:21]} 3. d4 {[%emt 0:00:59]} exd4 {[%emt 0:00:13]} 4. Nxd4 {[%emt 0:01:13]} Bb4+ {[%emt 0:00:11]} 5. c3 {[%emt 0:03:27]} Bc5 {[%emt 0:00:03]} 6. Be3 {[%emt 0:01:49]} Bb6 {[%emt 0:00:05]} 7. Bd3 {[%emt 0:10:08]} Nge7 {[%emt 0:08:49]} 8. O-O {[%emt 0:07:14]} O-O {[%emt 0:00:15]} 9. Qc2 {[%emt 0:02:22]} g6 {[%emt 0:18:27]} 10. Nd2 {[%emt 0:06:33]} d5 {[%emt 0:04:33]} 11. Nxc6 {[%emt 0:03:08]} bxc6 {[%emt 0:03:26]} 12. Bh6 {[%emt 0:03:00]} Re8 {[%emt 0:00:06]} 13. c4 {[%emt 0:03:02]} Bd4 {[%emt 0:17:26]} 14. Nb3 {[%emt 0:05:30]} Bh8 {[%emt 0:07:33]} 15. Rfe1 {[%emt 0:06:49]} Ba6 {[%emt 0:04:56]} 16. Rad1 {[%emt 0:13:03]} Qd6 {[%emt 0:08:10]} 17. Qc1 {[%emt 0:00:35]} Qb4 {[%emt 0:03:29]} 18. Bd2 {[%emt 0:13:04]} Qb8 {[%emt 0:00:09]} 19. Bc3 {[%emt 0:01:28]} Bxc3 {[%emt 0:02:12]} 20. Qxc3 {[%emt 0:00:07]} Bxc4 {[%emt 0:02:20]} 21. Bxc4 {[%emt 0:00:06]} dxc4 {[%emt 0:00:09]} 22. Qxc4 {[%emt 0:00:01]} Qb5 {[%emt 0:00:31]} 23. Qc3 {[%emt 0:01:11]} Rad8 {[%emt 0:03:57]} 24. Nc5 {[%emt 0:01:09]} Rxd1 {[%emt 0:07:30]} 25. Rxd1 {[%emt 0:00:02]} Rb8 {[%emt 0:00:37]} 26. h4 {[%emt 0:07:15]} f6 {[%emt 0:02:00]} 27. Rd7 {[%emt 0:02:36]} Kf7 {[%emt 0:02:40]} 28. b3 {[%emt 0:05:06]} Qe2 {[%emt 0:02:38]} 29. Rd3 {[%emt 0:01:07]} Rb5 {[%emt 0:00:24]} 30. b4 {[%emt 0:01:08]} a5 {[%emt 0:00:22]} 31. Qc4+ {[%emt 0:00:23]} Kg7 {[%emt 0:00:19]} 32. Qe6 {[%emt 0:00:57]} Rxc5 {[%emt 0:01:06]} 33. Qxe7+ {[%emt 0:00:13]} Kh6 {[%emt 0:00:06]} 34. Qf8+ {[%emt 0:00:02]} 1-0

[Event "28th Bosnjaci Open 2024"]
[Site "Bosnjaci"]
[Date "2024.01.08"]
[Round "8.7"]
[White "Zovko, Mario"]
[Black "Vujnovic, Patricija"]
[Result "1-0"]
[ECO "B22"]
[WhiteElo "2268"]
[BlackElo "2104"]
[Annotator "RC"]
[PlyCount "93"]
[EventDate "2024.01.02"]
[EventType "swiss"]
[EventCountry "CRO"]
[SourceTitle "playchess.com"]
[Source "ChessBase"]
[SourceQuality "1"]
[TimeControl "5400+30"]

1. e4 {[%emt 0:20:59]} c5 {[%emt 0:00:27]} 2. Nf3 {[%emt 0:00:42]} e6 {[%emt 0:00:10]} 3. c3 {[%emt 0:00:05]} d5 {[%emt 0:00:58]} 4. exd5 {[%emt 0:00:06]} exd5 {[%emt 0:00:54]} 5. d4 {[%emt 0:00:06]} Nc6 {[%emt 0:06:09]} 6. Bb5 {[%emt 0:01:11]} Nf6 {[%emt 0:06:15]} 7. O-O {[%emt 0:00:57]} cxd4 {[%emt 0:09:27]} 8. Nxd4 {[%emt 0:07:22]} Bd7 {[%emt 0:00:36]} 9. Re1+ {[%emt 0:05:41]} Be7 {[%emt 0:00:15]} 10. Qe2 {[%emt 0:00:05]} Nxd4 {[%emt 0:05:02]} 11. Bxd7+ {[%emt 0:01:39]} Qxd7 {[%emt 0:03:24]} 12. cxd4 {[%emt 0:00:05]} Rc8 {[%emt 0:13:38]} 13. Bg5 {[%emt 0:03:22]} Rc6 {[%emt 0:00:51]} 14. Bxf6 {[%emt 0:00:21]} Rxf6 {[%emt 0:06:48]} 15. Nc3 {[%emt 0:05:56]} Re6 {[%emt 0:08:15]} 16. Qf3 {[%emt 0:02:48]} O-O {[%emt 0:07:01]} 17. Nxd5 {[%emt 0:00:18]} Rd8 {[%emt 0:03:46]} 18. Nxe7+ {[%emt 0:03:17]} Rxe7 {[%emt 0:00:06]} 19. Rxe7 {[%emt 0:00:46]} Qxe7 {[%emt 0:00:01]} 20. Qc3 {[%emt 0:01:02]} h5 {[%emt 0:06:34]} 21. h3 {[%emt 0:05:31]} Qe4 {[%emt 0:00:28]} 22. Rd1 {[%emt 0:01:57]} g6 {[%emt 0:03:26]} 23. Qe3 {[%emt 0:11:17]} Qd5 {[%emt 0:00:14]} 24. Qb3 {[%emt 0:00:58]} Qxb3 {[%emt 0:02:08]} 25. axb3 {[%emt 0:00:04]} Kf8 {[%emt 0:01:15]} 26. Kf1 {[%emt 0:00:07]} Ke7 {[%emt 0:00:59]} 27. Ke2 {[%emt 0:00:11]} Kd6 {[%emt 0:00:16]} 28. Ra1 {[%emt 0:03:30]} a6 {[%emt 0:00:22]} 29. Rc1 {[%emt 0:00:09]} Re8+ {[%emt 0:02:13]} 30. Kd3 {[%emt 0:00:24]} Rd8 {[%emt 0:02:11]} 31. Rc2 {[%emt 0:01:57]} Re8 {[%emt 0:00:18]} 32. Re2 {[%emt 0:01:15]} Rc8 {[%emt 0:00:04]} 33. Re3 {[%emt 0:00:29]} Rc1 {[%emt 0:02:06]} 34. Rf3 {[%emt 0:00:21]} Rc7 {[%emt 0:03:14]} 35. Rf6+ {[%emt 0:01:40]} Kd5 {[%emt 0:00:04]} 36. h4 {[%emt 0:02:26]} Rd7 {[%emt 0:00:44]} 37. f3 {[%emt 0:00:26]} Rc7 {[%emt 0:00:03]} 38. g4 {[%emt 0:04:12]} hxg4 {[%emt 0:00:05]} 39. fxg4 {[%emt 0:00:04]} Re7 {[%emt 0:00:02]} 40. h5 {[%emt 0:00:15]} a5 {[%emt 0:02:35]} 41. hxg6 {[%emt 0:01:02]} fxg6 {[%emt 0:00:05]} 42. Rxg6 {[%emt 0:00:04]} Rf7 {[%emt 0:01:16]} 43. Rg5+ {[%emt 0:00:05]} Kc6 {[%emt 0:00:03]} 44. Rxa5 {[%emt 0:00:13]} Rg7 {[%emt 0:00:17]} 45. Rc5+ {[%emt 0:00:24]} Kd6 {[%emt 0:00:07]} 46. g5 {[%emt 0:00:15]} Rh7 {[%emt 0:00:12]} 47. g6 {[%emt 0:00:32]} 1-0

[Event "28th Bosnjaci Open 2024"]
[Site "Bosnjaci"]
[Date "2024.01.08"]
[Round "8.8"]
[White "Pavic, Filip"]
[Black "Damjanovic, Stjepan"]
[Result "1/2-1/2"]
[ECO "B36"]
[WhiteElo "2261"]
[BlackElo "2149"]
[Annotator "RC"]
[PlyCount "69"]
[EventDate "2024.01.02"]
[EventType "swiss"]
[EventCountry "CRO"]
[SourceTitle "playchess.com"]
[Source "ChessBase"]
[SourceQuality "1"]
[TimeControl "5400+30"]

1. Nf3 {[%emt 0:00:04]} g6 {[%emt 0:01:06]} 2. e4 {[%emt 0:01:21]} c5 {[%emt 0:00:15]} 3. c4 {[%emt 0:02:39]} Nc6 {[%emt 0:00:59]} 4. d4 {[%emt 0:00:13]} cxd4 {[%emt 0:00:07]} 5. Nxd4 {[%emt 0:00:05]} Nf6 {[%emt 0:00:13]} 6. Nc3 {[%emt 0:01:07]} Nxd4 {[%emt 0:01:22]} 7. Qxd4 {[%emt 0:00:10]} d6 {[%emt 0:00:21]} 8. Be2 {[%emt 0:11:20]} Bg7 {[%emt 0:00:09]} 9. Be3 {[%emt 0:00:51]} O-O {[%emt 0:00:10]} 10. Qd2 {[%emt 0:00:22]} a5 {[%emt 0:00:27]} 11. O-O {[%emt 0:06:16]} a4 {[%emt 0:01:06]} 12. Rfd1 {[%emt 0:09:25]} Qa5 {[%emt 0:01:24]} 13. Rac1 {[%emt 0:03:26]} Be6 {[%emt 0:00:50]} 14. f3 {[%emt 0:03:37]} Rfc8 {[%emt 0:01:33]} 15. Nd5 {[%emt 0:07:07]} Qxd2 {[%emt 0:27:13]} 16. Rxd2 {[%emt 0:19:33]} Bxd5 {[%emt 0:09:11]} 17. exd5 {[%emt 0:00:12]} Nd7 {[%emt 0:02:26]} 18. Rdc2 {[%emt 0:05:03]} a3 {[%emt 0:15:43]} 19. b3 {[%emt 0:00:37]} Bb2 {[%emt 0:01:14]} 20. Re1 {[%emt 0:05:32]} b5 {[%emt 0:02:26]} 21. c5 {[%emt 0:04:57]} Nxc5 {[%emt 0:01:14]} 22. Bxc5 {[%emt 0:01:34]} b4 {[%emt 0:05:18]} 23. Bb5 {[%emt 0:10:20]} Rxc5 {[%emt 0:18:55]} 24. Rxc5 {[%emt 0:00:07]} Bd4+ {[%emt 0:03:00]} 25. Kf1 {[%emt 0:00:02]} Bxc5 {[%emt 0:00:07]} 26. Rxe7 {[%emt 0:00:08]} Kf8 {[%emt 0:00:21]} 27. Re4 {[%emt 0:04:29]} Ra7 {[%emt 0:00:56]} 28. Re8+ {[%emt 0:00:16]} Kg7 {[%emt 0:00:03]} 29. f4 {[%emt 0:01:54]} h5 {[%emt 0:01:25]} 30. Ke2 {[%emt 0:01:49]} Kf6 {[%emt 0:00:08]} 31. Kf3 {[%emt 0:00:26]} Rc7 {[%emt 0:01:23]} 32. Bc6 {[%emt 0:00:27]} Bg1 {[%emt 0:01:25]} 33. h3 {[%emt 0:00:26]} Re7 {[%emt 0:00:13]} 34. g4 {[%emt 0:00:47]} Rxe8 {[%emt 0:01:06]} 35. Bxe8 {[%emt 0:00:02]} 1/2-1/2

[Event "28th Bosnjaci Open 2024"]
[Site "Bosnjaci"]
[Date "2024.01.08"]
[Round "8.9"]
[White "Markovic, Franjo-Josip"]
[Black "Cvitan, Ena"]
[Result "1/2-1/2"]
[ECO "D13"]
[WhiteElo "2194"]
[BlackElo "2242"]
[Annotator "RC"]
[PlyCount "21"]
[EventDate "2024.01.02"]
[EventType "swiss"]
[EventCountry "CRO"]
[SourceTitle "playchess.com"]
[Source "ChessBase"]
[SourceQuality "1"]
[TimeControl "5400+30"]

1. d4 {[%emt 0:00:05]} d5 {[%emt 0:01:13]} 2. Bf4 {[%emt 0:00:11]} Nf6 {[%emt 0:00:14]} 3. e3 {[%emt 0:00:12]} c5 {[%emt 0:00:12]} 4. c3 {[%emt 0:00:42]} cxd4 {[%emt 0:00:32]} 5. cxd4 {[%emt 0:01:00]} Nc6 {[%emt 0:00:11]} 6. Nc3 {[%emt 0:00:15]} a6 {[%emt 0:00:12]} 7. Nf3 {[%emt 0:00:54]} Bg4 {[%emt 0:00:38]} 8. Be2 {[%emt 0:00:46]} Bxf3 {[%emt 0:00:31]} 9. Bxf3 {[%emt 0:00:09]} e6 {[%emt 0:00:04]} 10. O-O {[%emt 0:00:23]} Bd6 {[%emt 0:00:06]} 11. Bxd6 {[%emt 0:00:22]} 1/2-1/2